Workbook

Sheet Mestaruussarja
B1: Ari Laaksonen | E1: 1965
B2: MESTARUUSSARJA | E2: Runkosarja | I2: Kärkilyönnit (KL), pesänvälit | P2: Ylempi loppusarja | W2: Alempi loppusarja | AD2: Arvo-ottelut | AH2: Mitalit
B3: Vuosi | C3: Sija | D3: Seura | E3: OTT | F3: KUN | G3: LÖI | H3: TOI | I3: KL | J3: 0 > 1 | K3: 1 > 2 | L3: 2 > 3 | M3: 3 > k | N3: KL-% | P3: OTT | Q3: KUN | R3: LÖI | S3: TOI | T3: KL | U3: KL-% | W3: OTT | X3: KUN | Y3: LÖI | Z3: TOI | AA3: KL | AB3: KL-% | AD3: IL | AE3: LL | AF3: Cup | AG3: K | AH3: H | AI3: P
B4: 1983 | C4: 6. | D4: LP | F4: suomensarja | AF4: 1
B5: 1984 | C5: 8. | D5: LP | F5: suomensarja
B6: 1985 | C6: 9. | D6: VihtU | F6: suomensarja
B7: 1986
B8: 1987
B9: 1988 | C9: 4. | D9: TPP | F9: suomensarja
B10: 1989
B11: 1990
B12: 1991 | C12: 11. | D12: UPV | F12: ykkössarja
B13: 1992
B14: 1993
B15: 1994 | C15: 2. | D15: Jymy | F15: maakuntasarja
B16: 1995 | C16: 6. | D16: Jymy | F16: maakuntasarja
B17: 1996 | C17: 1. | D17: Jymy | F17: maakuntasarja
B18: 1997 | C18: 5. | D18: Jymy | F18: suomensarja
B19: 1998 | C19: 8. | D19: Jymy | F19: suomensarja
B20: 1999 | C20: 5. | D20: Jymy | F20: suomensarja
B21: Yhteensä | E21: =SUM(E4:E4) -> 0 | F21: 0 | G21: 0 | H21: 0 | I21: 0 | J21: 0 | K21: 0 | L21: 0 | M21: 0 | N21: ---- | P21: =SUM(P4:P4) -> 0 | Q21: 0 | R21: 0 | S21: 0 | T21: 0 | U21: ---- | W21: 0 | X21: 0 | Y21: 0 | Z21: 0 | AA21: 0 | AB21: ---- | AD21: 0 | AE21: 0 | AF21: 1 | AG21: 0 | AH21: 0 | AI21: 0
B22: Pesispörssi | D22: 15.0
B24: URA SUPERISSA | E24: OTT | F24: KUN | G24: LÖI | H24: TOI | I24: KL | K24: ka/L | L24: ka/T | M24: ka/KL | N24: KL-% | P24: ENSIMMÄISET RUNKOSARJASSA
B25: Runkosarja | P25: Ottelu
B26: Ylempi loppusarja | P26: Lyöty
B27: Alempi loppusarja | P27: Tuotu
B28: KAIKKI | P28: Kunnari
B30: Seurat | D30: LP = Loimaan Palloilijat (1931) | K30: UPV = Ulvilan Pesä-Veikot (1957)
D31: VihtU = Vihtiläjärven Urheilijat | K31: Jymy = Harjavallan Jymy (1910)
D32: TPP = Tammelan Pallopeliitat

Sheet MYP, MSS
B1: Ari Laaksonen | E1: 1965
B2: YKKÖSPESIS | E2: Runkosarja | L2: Runkosarja TOP-10 | Q2: Jatkosarjat | X2: SUOMENSARJA | AA2: Runkosarja | AH2: Runkosarja TOP-10 | AM2: Jatkosarjat
B3: Vuosi | C3: Sija | D3: Seura | E3: OTT | F3: KUN | G3: LÖI | H3: TOI | I3: KL | J3: KL-% | L3: LÖI | M3: TOI | N3: L+T | O3: KL | Q3: OTT | R3: KUN | S3: LÖI | T3: TOI | U3: KL | V3: KL-% | X3: Vuosi | Y3: Sija | Z3: Seura | AA3: OTT | AB3: KUN | AC3: LÖI | AD3: TOI | AE3: KL | AF3: KL-% | AH3: LÖI | AI3: TOI | AJ3: L+T | AK3: KL | AM3: OTT | AN3: KUN | AO3: LÖI | AP3: TOI | AQ3: KL | AR3: KL-%
X4: 1983 | Y4: 6. | Z4: LP | AA4: 3 | AB4: 0 | AC4: 1 | AD4: 1
X5: 1984 | Y5: 8. | Z5: LP | AA5: 17 | AB5: 0 | AC5: 10 | AD5: 11
X6: 1985 | Y6: 9. | Z6: VihtU | AA6: 17 | AB6: 0 | AC6: 11 | AD6: 8
X8: 1988 | Y8: 4. | Z8: TPP | AA8: 21 | AB8: 0 | AC8: 9 | AD8: 18
B10: 1991 | C10: 11. | D10: UPV | E10: 22 | F10: 0 | G10: 3 | H10: 6 | I10: 50
B11: YHTEENSÄ | E11: =SUM(E4:E10) -> 22 | F11: =SUM(F4:F10) -> 0 | G11: =SUM(G4:G10) -> 3 | H11: =SUM(H4:H10) -> 6 | I11: =SUM(I4:I10) -> 50 | J11: 0.0 % | K11: =SUM(K4:K10) -> 0 | Q11: =SUM(Q4:Q10) -> 0 | R11: =SUM(R4:R10) -> 0 | S11: =SUM(S4:S10) -> 0 | T11: =SUM(T4:T10) -> 0 | U11: =SUM(U4:U10) -> 0 | V11: 0.0 % | W11: =SUM(W4:W10) -> 0 | X11: YHTEENSÄ | AA11: =SUM(AA4:AA10) -> 58 | AB11: =SUM(AB4:AB10) -> 0 | AC11: =SUM(AC4:AC10) -> 31 | AD11: =SUM(AD4:AD10) -> 38 | AE11: =SUM(AE4:AE10) -> 0 | AF11: 0.0 % | AG11: =SUM(AG4:AG10) -> 0 | AM11: =SUM(AM4:AM10) -> 0 | AN11: =SUM(AN4:AN10) -> 0 | AO11: =SUM(AO4:AO10) -> 0 | AP11: =SUM(AP4:AP10) -> 0 | AQ11: =SUM(AQ4:AQ10) -> 0 | AR11: 0.0 % | AS11: =SUM(AS4:AS10) -> 0
B13: KAIKKI OTTELUT | E13: OTT | F13: KUN | G13: LÖI | H13: TOI | I13: KL | J13: KL-% | L13: ka/L | M13: ka/T | N13: ka/l+t | O13: ka/kl | R13: Seurat | T13: LP = Loimaan Palloilijat (1931)
B14: SUPERPESIS | E14: 0 | F14: 0 | G14: 0 | H14: 0 | I14: 0 | J14: 0.0 % | K14: =PRODUCT(I14/J14) ->  | L14: 0.00 | M14: 0.00 | N14: 0.00 | O14: 0.00 | T14: VihtU = Vihtiläjärven Urheilijat
B15: YKKÖSPESIS | E15: =PRODUCT(E11+Q11) -> 22 | F15: =PRODUCT(F11+R11) -> 0 | G15: =PRODUCT(G11+S11) -> 3 | H15: =PRODUCT(H11+T11) -> 6 | I15: =PRODUCT(I11+U11) -> 50 | J15: 0.0 % | K15: =PRODUCT(K11+W11) -> 0 | L15: =PRODUCT((F15+G15)/E15) -> 0.14 | M15: =PRODUCT(H15/E15) -> 0.27 | N15: =PRODUCT((F15+G15+H15)/E15) -> 0.41 | O15: =PRODUCT(I15/E15) -> 2.27 | T15: TPP = Tammelan Pallopeliitat
B16: SUOMENSARJA | E16: =PRODUCT(AA11+AM11) -> 58 | F16: =PRODUCT(AB11+AN11) -> 0 | G16: =PRODUCT(AC11+AO11) -> 31 | H16: =PRODUCT(AD11+AP11) -> 38 | I16: =PRODUCT(AE11+AQ11) -> 0 | J16: 0.0 % | K16: =PRODUCT(AG11+AS11) -> 0 | L16: =PRODUCT((F16+G16)/E16) -> 0.53 | M16: =PRODUCT(H16/E16) -> 0.66 | N16: =PRODUCT((F16+G16+H16)/E16) -> 1.19 | O16: =PRODUCT(I16/E16) -> 0.00 | T16: UPV = Ulvilan Pesä-Veikot (1957)
B17: YHTEENSÄ | E17: =SUM(E14:E16) -> 80 | F17: =SUM(F14:F16) -> 0 | G17: 34 | H17: 44 | I17: 50 | J17: 0.0 % | K17: =SUM(K14:K16) ->  | L17: =PRODUCT((F17+G17)/E17) -> 0.43 | M17: =PRODUCT(H17/E17) -> 0.55 | N17: =PRODUCT((F17+G17+H17)/E17) -> 0.98 | O17: 2.27 | T17: Jymy = Harjavallan Jymy (1910)
